[Event "*** MasterClass Titled Tuesday Blitz"]
[Site "Chess.com"]
[Date "2017.10.03"]
[Round "1"]
[White "ka1ser64"]
[Black "Muisback26"]
[Result "0-1"]
[WhiteElo "2324"]
[BlackElo "2620"]
[TimeControl "180+2"]
[EndTime "13:06:03 PDT"]
[Termination "Muisback26 won by resignation"]

1. d4 {[%clk 0:03:01.5]} 1... Nf6 {[%clk 0:02:59.7]} 2. c4 {[%clk 0:02:56.7]}
2... g6 {[%clk 0:03:01.6]} 3. Nc3 {[%clk 0:02:57.3]} 3... Bg7 {[%clk 0:03:00.4]}
4. e4 {[%clk 0:02:58]} 4... d6 {[%clk 0:03:02.3]} 5. Nf3 {[%clk 0:02:59]} 5...
O-O {[%clk 0:03:02.8]} 6. Be2 {[%clk 0:03:00.5]} 6... e5 {[%clk 0:03:01.9]} 7.
O-O {[%clk 0:03:01.6]} 7... c6 {[%clk 0:03:02.4]} 8. Re1 {[%clk 0:03:02.3]} 8...
Bg4 {[%clk 0:03:01.2]} 9. Rb1 {[%clk 0:03:01.4]} 9... Na6 {[%clk 0:03:01]} 10.
d5 {[%clk 0:02:56.1]} 10... Nc5 {[%clk 0:02:57.7]} 11. Nd2 {[%clk 0:02:56]}
11... Nd3 {[%clk 0:02:48.4]} 12. f3 {[%clk 0:02:39.7]} 12... Nxc1 {[%clk
0:02:44.8]} 13. Qxc1 {[%clk 0:02:35]} 13... Bd7 {[%clk 0:02:41.2]} 14. Nf1
{[%clk 0:02:09.5]} 14... Nh5 {[%clk 0:02:36.6]} 15. g3 {[%clk 0:01:58]} 15... f5
{[%clk 0:02:34.7]} 16. Nd2 {[%clk 0:01:52.4]} 16... Bh6 {[%clk 0:02:30.5]} 17.
Qc2 {[%clk 0:01:51.8]} 17... Be3+ {[%clk 0:02:03.9]} 18. Kg2 {[%clk 0:01:50.7]}
18... Qg5 {[%clk 0:02:01.5]} 19. Nf1 {[%clk 0:01:51.1]} 19... Bd4 {[%clk
0:02:00.8]} 20. Kh1 {[%clk 0:01:46.3]} 20... Qh6 {[%clk 0:01:54.5]} 21. Bd3
{[%clk 0:01:43.9]} 21... Rac8 {[%clk 0:01:46.5]} 22. Ne2 {[%clk 0:01:34.4]}
22... Bf2 {[%clk 0:01:39.3]} 23. Red1 {[%clk 0:01:31]} 23... cxd5 {[%clk
0:01:38.1]} 24. exd5 {[%clk 0:01:29.8]} 24... e4 {[%clk 0:01:36.8]} 25. fxe4
{[%clk 0:01:29.2]} 25... f4 {[%clk 0:01:36.8]} 26. Qd2 {[%clk 0:01:22.4]} 26...
Bg4 {[%clk 0:01:35.7]} 27. Ng1 {[%clk 0:01:17.7]} 27... Be3 {[%clk 0:01:29.5]}
28. Nxe3 {[%clk 0:01:05.5]} 28... fxe3 {[%clk 0:01:31.4]} 29. Qb4 {[%clk
0:01:01.3]} 29... Nxg3+ {[%clk 0:01:29.3]} 30. Kg2 {[%clk 0:01:02.5]} 30... Rf2+
{[%clk 0:01:30.5]} 31. Kxg3 {[%clk 0:01:01.2]} 31... Qxh2+ {[%clk 0:01:31.4]}
32. Kxg4 {[%clk 0:01:01.9]} 32... Rf4+ {[%clk 0:01:31.9]} 0-1

[Event "*** MasterClass Titled Tuesday Blitz"]
[Site "Chess.com"]
[Date "2017.10.03"]
[Round "1"]
[White "Lawliet64"]
[Black "nubair1198"]
[Result "0-1"]
[WhiteElo "2042"]
[BlackElo "2446"]
[TimeControl "180+2"]
[EndTime "13:06:04 PDT"]
[Termination "nubair1198 won by checkmate"]

1. e4 {[%clk 0:03:01.9]} 1... Nf6 {[%clk 0:02:59.1]} 2. Nc3 {[%clk 0:03:00.6]}
2... d5 {[%clk 0:02:59.7]} 3. exd5 {[%clk 0:03:01]} 3... Nxd5 {[%clk 0:03:01.6]}
4. Bc4 {[%clk 0:03:01.6]} 4... Nb6 {[%clk 0:03:01.8]} 5. Bb3 {[%clk 0:03:02.2]}
5... Nc6 {[%clk 0:03:03.5]} 6. h3 {[%clk 0:02:59.7]} 6... g6 {[%clk 0:03:04.4]}
7. d3 {[%clk 0:02:57.1]} 7... Bg7 {[%clk 0:03:05.6]} 8. f4 {[%clk 0:02:58.1]}
8... O-O {[%clk 0:03:07.1]} 9. Nf3 {[%clk 0:02:59.3]} 9... Nd4 {[%clk 0:03:08]}
10. O-O {[%clk 0:02:59.7]} 10... c5 {[%clk 0:03:07.8]} 11. Nxd4 {[%clk
0:02:47.7]} 11... Qxd4+ {[%clk 0:03:07.5]} 12. Kh1 {[%clk 0:02:48.4]} 12... Bd7
{[%clk 0:03:08.8]} 13. Qe1 {[%clk 0:02:47.2]} 13... Rae8 {[%clk 0:03:09.6]} 14.
Be3 {[%clk 0:02:47.5]} 14... Qb4 {[%clk 0:03:08.7]} 15. Ne4 {[%clk 0:02:44.3]}
15... Qxe1 {[%clk 0:03:02.9]} 16. Raxe1 {[%clk 0:02:43.9]} 16... c4 {[%clk
0:03:04.2]} 17. dxc4 {[%clk 0:02:41.8]} 17... Bxb2 {[%clk 0:03:04.3]} 18. Bc5
{[%clk 0:02:15.7]} 18... Bc6 {[%clk 0:02:58.8]} 19. Ng5 {[%clk 0:02:09.3]} 19...
Bf6 {[%clk 0:02:58.5]} 20. Ne4 {[%clk 0:02:10.1]} 20... Bh4 {[%clk 0:02:59.5]}
21. g3 {[%clk 0:01:47.3]} 21... Bxg3 {[%clk 0:02:59.3]} 22. Re3 {[%clk
0:01:38.7]} 22... Bh4 {[%clk 0:02:59.1]} 23. Kg1 {[%clk 0:01:35]} 23... Nd7
{[%clk 0:02:54.7]} 24. Ba3 {[%clk 0:01:34]} 24... Rd8 {[%clk 0:02:51.6]} 25. Ng5
{[%clk 0:01:32.7]} 25... e5 {[%clk 0:02:50.2]} 26. Bxf8 {[%clk 0:01:27.6]} 26...
exf4 {[%clk 0:02:51.3]} 27. Nxf7 {[%clk 0:01:22.8]} 27... Rxf8 {[%clk
0:02:49.1]} 28. Rxf4 {[%clk 0:01:15.5]} 28... Bf6 {[%clk 0:02:44.5]} 29. c5
{[%clk 0:01:12.4]} 29... Kg7 {[%clk 0:02:44.9]} 30. Nd6 {[%clk 0:01:07]} 30...
Nxc5 {[%clk 0:02:45.7]} 31. Rb4 {[%clk 0:00:38.6]} 31... Bg5 {[%clk 0:02:44]}
32. Re2 {[%clk 0:00:24.6]} 32... a5 {[%clk 0:02:43]} 33. Rb6 {[%clk 0:00:20.5]}
33... Rf3 {[%clk 0:02:41.7]} 34. Re5 {[%clk 0:00:15.3]} 34... Be3+ {[%clk
0:02:40.2]} 35. Kh2 {[%clk 0:00:14.3]} 35... Rf2+ {[%clk 0:02:40.7]} 36. Kg3
{[%clk 0:00:14.8]} 36... Rg2+ {[%clk 0:02:40]} 37. Kh4 {[%clk 0:00:12.9]} 37...
g5+ {[%clk 0:02:40.9]} 38. Kh5 {[%clk 0:00:12.9]} 38... Bf3# {[%clk 0:02:42]}
0-1

[Event "*** MasterClass Titled Tuesday Blitz"]
[Site "Chess.com"]
[Date "2017.10.03"]
[Round "1"]
[White "Tarlev_Konstantin"]
[Black "NateSolon"]
[Result "1-0"]
[WhiteElo "2614"]
[BlackElo "2319"]
[TimeControl "180+2"]
[EndTime "13:06:10 PDT"]
[Termination "Tarlev_Konstantin won by resignation"]

1. d4 {[%clk 0:03:01.9]} 1... d5 {[%clk 0:03:00.3]} 2. Nf3 {[%clk 0:03:02.8]}
2... Nf6 {[%clk 0:02:58.7]} 3. c4 {[%clk 0:03:04.2]} 3... e6 {[%clk 0:02:53.4]}
4. Nc3 {[%clk 0:03:03.2]} 4... a6 {[%clk 0:02:49.5]} 5. cxd5 {[%clk 0:03:00.9]}
5... exd5 {[%clk 0:02:49.9]} 6. Qb3 {[%clk 0:03:01.8]} 6... c6 {[%clk
0:02:37.9]} 7. Bg5 {[%clk 0:02:58.3]} 7... Be7 {[%clk 0:02:34.2]} 8. e3 {[%clk
0:02:58.5]} 8... O-O {[%clk 0:02:33.3]} 9. Bd3 {[%clk 0:03:00]} 9... Ra7 {[%clk
0:01:57.6]} 10. O-O {[%clk 0:02:59.4]} 10... Bg4 {[%clk 0:01:56.9]} 11. Ne5
{[%clk 0:02:59.4]} 11... Bh5 {[%clk 0:01:57.5]} 12. f4 {[%clk 0:02:58.8]} 12...
Nfd7 {[%clk 0:01:53.9]} 13. Bxe7 {[%clk 0:02:45.1]} 13... Qxe7 {[%clk
0:01:55.8]} 14. Rae1 {[%clk 0:02:45.3]} 14... f6 {[%clk 0:01:45.4]} 15. Nf3
{[%clk 0:02:35.5]} 15... Kh8 {[%clk 0:01:42.7]} 16. e4 {[%clk 0:02:35.1]} 16...
dxe4 {[%clk 0:01:42.3]} 17. Nxe4 {[%clk 0:02:34.1]} 17... Qd8 {[%clk 0:01:35.1]}
18. Ned2 {[%clk 0:02:10.5]} 18... Nb6 {[%clk 0:01:29.7]} 19. Qc2 {[%clk
0:02:09.9]} 19... f5 {[%clk 0:01:07.1]} 20. Bxf5 {[%clk 0:02:04.4]} 20... g6
{[%clk 0:01:08.3]} 21. Be6 {[%clk 0:01:59.5]} 21... Bxf3 {[%clk 0:01:04.8]} 22.
Nxf3 {[%clk 0:01:58.9]} 22... Rxf4 {[%clk 0:01:05.6]} 23. d5 {[%clk 0:01:47.1]}
23... Nxd5 {[%clk 0:01:02.7]} 24. Ne5 {[%clk 0:01:41.2]} 24... Qb6+ {[%clk
0:00:45.8]} 25. Kh1 {[%clk 0:01:40.7]} 25... Rxf1+ {[%clk 0:00:46.8]} 26. Rxf1
{[%clk 0:01:41.3]} 26... Ne3 {[%clk 0:00:36.9]} 27. Qc3 {[%clk 0:01:36.3]} 1-0

[Event "*** MasterClass Titled Tuesday Blitz"]
[Site "Chess.com"]
[Date "2017.10.03"]
[Round "1"]
[White "bancsoo"]
[Black "saraswathii"]
[Result "1-0"]
[WhiteElo "2548"]
[BlackElo "2272"]
[TimeControl "180+2"]
[EndTime "13:06:19 PDT"]
[Termination "bancsoo won by resignation"]

1. Nf3 {[%clk 0:03:01.9]} 1... Nf6 {[%clk 0:02:58.8]} 2. g3 {[%clk 0:03:03.2]}
2... g6 {[%clk 0:02:59.4]} 3. Bg2 {[%clk 0:03:04.8]} 3... Bg7 {[%clk 0:03:00.2]}
4. O-O {[%clk 0:03:06]} 4... O-O {[%clk 0:03:01.8]} 5. d4 {[%clk 0:03:07.2]}
5... d6 {[%clk 0:03:02.7]} 6. c4 {[%clk 0:03:08.3]} 6... Nfd7 {[%clk 0:03:03.4]}
7. Nc3 {[%clk 0:03:08.1]} 7... c6 {[%clk 0:03:03.7]} 8. e4 {[%clk 0:03:08.3]}
8... e5 {[%clk 0:03:01.6]} 9. h3 {[%clk 0:03:09]} 9... exd4 {[%clk 0:02:56]} 10.
Nxd4 {[%clk 0:03:09.5]} 10... Nb6 {[%clk 0:02:57]} 11. b3 {[%clk 0:03:05.5]}
11... N8d7 {[%clk 0:02:55.1]} 12. Be3 {[%clk 0:03:04.4]} 12... Qe7 {[%clk
0:02:54.8]} 13. Qc2 {[%clk 0:03:01.8]} 13... Nc5 {[%clk 0:02:55.1]} 14. Rfe1
{[%clk 0:02:59.6]} 14... Ne6 {[%clk 0:02:53.3]} 15. Rad1 {[%clk 0:02:48.2]}
15... Nxd4 {[%clk 0:02:53.6]} 16. Bxd4 {[%clk 0:02:49.4]} 16... Be6 {[%clk
0:02:54.4]} 17. Qd2 {[%clk 0:02:20.7]} 17... Rad8 {[%clk 0:02:52.5]} 18. Nd5
{[%clk 0:02:18.5]} 18... Bxd5 {[%clk 0:02:42.8]} 19. exd5 {[%clk 0:02:17.2]}
19... Qd7 {[%clk 0:02:43.4]} 20. dxc6 {[%clk 0:02:16.4]} 20... bxc6 {[%clk
0:02:44.6]} 21. Bxg7 {[%clk 0:02:14.3]} 21... Kxg7 {[%clk 0:02:45.2]} 22. c5
{[%clk 0:02:13.9]} 22... Nc8 {[%clk 0:02:40.6]} 23. cxd6 {[%clk 0:02:12.7]}
23... Qxd6 {[%clk 0:02:36]} 24. Qc3+ {[%clk 0:01:58.7]} 24... Qf6 {[%clk
0:02:36.2]} 25. Qxc6 {[%clk 0:01:57.8]} 25... Rxd1 {[%clk 0:02:17]} 26. Rxd1
{[%clk 0:01:58]} 26... Nb6 {[%clk 0:01:59.6]} 27. Qxf6+ {[%clk 0:01:53.6]} 27...
Kxf6 {[%clk 0:02:00.2]} 28. a4 {[%clk 0:01:55.2]} 28... Ke6 {[%clk 0:01:55.5]}
29. a5 {[%clk 0:01:50.3]} 29... Nd7 {[%clk 0:01:56.2]} 30. b4 {[%clk 0:01:37.3]}
30... Rb8 {[%clk 0:01:53.9]} 31. b5 {[%clk 0:01:38.3]} 31... Ne5 {[%clk
0:01:46.2]} 32. b6 {[%clk 0:01:35.6]} 32... a6 {[%clk 0:01:34.9]} 33. Bf1 {[%clk
0:01:35.9]} 33... Nc6 {[%clk 0:01:33]} 34. Ra1 {[%clk 0:01:32.4]} 34... Ra8
{[%clk 0:01:11.4]} 35. Bg2 {[%clk 0:01:31]} 35... Kd6 {[%clk 0:01:11.9]} 36.
Rd1+ {[%clk 0:01:29.8]} 1-0

[Event "*** MasterClass Titled Tuesday Blitz"]
[Site "Chess.com"]
[Date "2017.10.03"]
[Round "1"]
[White "pawnwonder"]
[Black "bilelou"]
[Result "0-1"]
[WhiteElo "1972"]
[BlackElo "2428"]
[TimeControl "180+2"]
[EndTime "13:06:42 PDT"]
[Termination "bilelou won by resignation"]

1. e4 {[%clk 0:02:56.6]} 1... e6 {[%clk 0:02:58.2]} 2. d4 {[%clk 0:02:56.5]}
2... b6 {[%clk 0:03:00.1]} 3. Bd3 {[%clk 0:02:47.4]} 3... Bb7 {[%clk 0:03:00.3]}
4. Nf3 {[%clk 0:02:48.2]} 4... g6 {[%clk 0:02:59.8]} 5. O-O {[%clk 0:02:47.9]}
5... Bg7 {[%clk 0:03:00.9]} 6. Be3 {[%clk 0:02:48.6]} 6... Ne7 {[%clk
0:03:02.5]} 7. Nbd2 {[%clk 0:02:48.2]} 7... d6 {[%clk 0:03:02.9]} 8. Re1 {[%clk
0:02:49.2]} 8... Nd7 {[%clk 0:03:04.5]} 9. c3 {[%clk 0:02:49.8]} 9... h6 {[%clk
0:03:06]} 10. Nf1 {[%clk 0:02:50.3]} 10... g5 {[%clk 0:03:07.4]} 11. h3 {[%clk
0:02:49.9]} 11... O-O {[%clk 0:03:02.1]} 12. Ng3 {[%clk 0:02:42.3]} 12... Bh8
{[%clk 0:02:54.8]} 13. h4 {[%clk 0:02:18.3]} 13... f6 {[%clk 0:02:47.5]} 14.
hxg5 {[%clk 0:01:53.5]} 14... hxg5 {[%clk 0:02:47.6]} 15. Bc4 {[%clk 0:01:53.2]}
15... d5 {[%clk 0:02:48]} 16. Bb3 {[%clk 0:01:53.6]} 16... Qe8 {[%clk
0:02:46.9]} 17. exd5 {[%clk 0:01:52.1]} 17... Bxd5 {[%clk 0:02:46.5]} 18. c4
{[%clk 0:01:52.5]} 18... Bb7 {[%clk 0:02:44.7]} 19. Rc1 {[%clk 0:01:45]} 19...
Rd8 {[%clk 0:02:38.9]} 20. c5 {[%clk 0:01:34.4]} 20... Bd5 {[%clk 0:02:37.6]}
21. Bxd5 {[%clk 0:01:32.8]} 21... Nxd5 {[%clk 0:02:38]} 22. c6 {[%clk
0:01:31.2]} 22... Nb8 {[%clk 0:02:38.8]} 23. Qb3 {[%clk 0:01:31.2]} 23... Qf7
{[%clk 0:02:20.7]} 24. Ne4 {[%clk 0:01:28.3]} 24... g4 {[%clk 0:02:16.5]} 25.
Nfd2 {[%clk 0:01:22.8]} 25... f5 {[%clk 0:02:06.6]} 26. Ng5 {[%clk 0:01:22.5]}
26... Qg6 {[%clk 0:02:05.8]} 27. Nxe6 {[%clk 0:01:17.7]} 27... Qxe6 {[%clk
0:02:03.5]} 28. Bg5 {[%clk 0:01:17.2]} 28... Qf7 {[%clk 0:02:04.5]} 29. Bxd8
{[%clk 0:01:17.7]} 29... Rxd8 {[%clk 0:02:06.4]} 30. Nc4 {[%clk 0:01:15.3]}
30... Nxc6 {[%clk 0:02:04.7]} 31. Qb5 {[%clk 0:01:15.7]} 31... Nxd4 {[%clk
0:02:04.8]} 32. Qa6 {[%clk 0:01:13.1]} 32... c5 {[%clk 0:01:54.1]} 33. Rcd1
{[%clk 0:01:12.3]} 33... Bf6 {[%clk 0:01:50.9]} 34. Qa3 {[%clk 0:00:57.7]} 34...
Qg7 {[%clk 0:01:49.8]} 35. Qd3 {[%clk 0:00:53.5]} 35... Nf3+ {[%clk 0:01:37.9]}
0-1

[Event "*** MasterClass Titled Tuesday Blitz"]
[Site "Chess.com"]
[Date "2017.10.03"]
[Round "1"]
[White "tomsishere"]
[Black "Kouzari"]
[Result "0-1"]
[WhiteElo "2275"]
[BlackElo "2547"]
[TimeControl "180+2"]
[EndTime "13:06:54 PDT"]
[Termination "Kouzari won by resignation"]

1. d4 {[%clk 0:02:59.7]} 1... Nf6 {[%clk 0:03:00.3]} 2. c4 {[%clk 0:03:00.1]}
2... e6 {[%clk 0:03:01.8]} 3. Nc3 {[%clk 0:03:01]} 3... c5 {[%clk 0:03:03.1]} 4.
d5 {[%clk 0:03:01.4]} 4... exd5 {[%clk 0:03:05]} 5. cxd5 {[%clk 0:03:03]} 5...
d6 {[%clk 0:03:06.9]} 6. e4 {[%clk 0:03:04.3]} 6... g6 {[%clk 0:03:08.4]} 7.
Nge2 {[%clk 0:03:05.7]} 7... Bg7 {[%clk 0:03:09.8]} 8. Ng3 {[%clk 0:03:07.2]}
8... O-O {[%clk 0:03:11.1]} 9. Be2 {[%clk 0:03:08.2]} 9... Na6 {[%clk
0:03:12.4]} 10. O-O {[%clk 0:03:07.7]} 10... Nc7 {[%clk 0:03:13.9]} 11. Bg5
{[%clk 0:03:04.8]} 11... h6 {[%clk 0:03:13.7]} 12. Be3 {[%clk 0:03:05.3]} 12...
Re8 {[%clk 0:03:14.6]} 13. f3 {[%clk 0:03:04.2]} 13... a6 {[%clk 0:03:08.7]} 14.
a4 {[%clk 0:03:04.2]} 14... Rb8 {[%clk 0:03:09.8]} 15. Qd2 {[%clk 0:03:02.7]}
15... Kh7 {[%clk 0:03:09.8]} 16. Rab1 {[%clk 0:02:34.4]} 16... b5 {[%clk
0:03:01]} 17. axb5 {[%clk 0:02:34.5]} 17... Nxb5 {[%clk 0:03:01.8]} 18. Nxb5
{[%clk 0:02:33.5]} 18... axb5 {[%clk 0:03:02.9]} 19. b4 {[%clk 0:02:34.5]} 19...
c4 {[%clk 0:03:01.6]} 20. Bd4 {[%clk 0:02:35.4]} 20... h5 {[%clk 0:02:40.6]} 21.
Rfd1 {[%clk 0:02:35.1]} 21... Bh6 {[%clk 0:02:27.8]} 22. Qc3 {[%clk 0:02:32.6]}
22... Nd7 {[%clk 0:02:28.9]} 23. Rf1 {[%clk 0:02:26.9]} 23... h4 {[%clk
0:02:26.5]} 24. Nh1 {[%clk 0:02:26.5]} 24... Ne5 {[%clk 0:02:25]} 25. f4 {[%clk
0:02:19.3]} 25... Nd7 {[%clk 0:02:17.4]} 26. e5 {[%clk 0:02:04.7]} 26... Bg7
{[%clk 0:02:00.6]} 27. e6 {[%clk 0:02:00.1]} 27... Bxd4+ {[%clk 0:02:00.2]} 28.
Qxd4 {[%clk 0:02:01.5]} 28... fxe6 {[%clk 0:01:56.1]} 29. dxe6 {[%clk
0:02:02.4]} 29... Qb6 {[%clk 0:01:48.1]} 30. Rfd1 {[%clk 0:01:47.6]} 30... Rxe6
{[%clk 0:01:42.4]} 31. Bg4 {[%clk 0:01:45.3]} 31... Re1+ {[%clk 0:01:42.6]} 32.
Rxe1 {[%clk 0:01:20.4]} 32... Qxd4+ {[%clk 0:01:43]} 33. Nf2 {[%clk 0:01:22]}
33... Nf6 {[%clk 0:01:34.5]} 34. Re7+ {[%clk 0:01:22.2]} 34... Kh6 {[%clk
0:01:34.9]} 35. Bf3 {[%clk 0:01:21.9]} 35... Bf5 {[%clk 0:01:30.9]} 36. Rd1
{[%clk 0:01:20.9]} 36... Qxf4 {[%clk 0:01:30.8]} 37. Rf7 {[%clk 0:01:21.4]}
37... Qe5 {[%clk 0:01:17.1]} 38. Kf1 {[%clk 0:01:11.6]} 38... c3 {[%clk
0:01:17.7]} 39. Re1 {[%clk 0:01:11.2]} 39... Qd4 {[%clk 0:01:13.7]} 40. Rd1
{[%clk 0:01:10.8]} 40... Qc4+ {[%clk 0:01:13.3]} 41. Be2 {[%clk 0:01:11.3]}
41... Qxf7 {[%clk 0:01:14.2]} 0-1

[Event "*** MasterClass Titled Tuesday Blitz"]
[Site "Chess.com"]
[Date "2017.10.03"]
[Round "1"]
[White "Sethu0025"]
[Black "Rokis13"]
[Result "1-0"]
[WhiteElo "2642"]
[BlackElo "2344"]
[TimeControl "180+2"]
[EndTime "13:07:03 PDT"]
[Termination "Sethu0025 won by resignation"]

1. e4 {[%clk 0:03:01.9]} 1... e5 {[%clk 0:02:55]} 2. Nf3 {[%clk 0:03:02.3]} 2...
Nc6 {[%clk 0:02:55.4]} 3. Bb5 {[%clk 0:03:03.3]} 3... Nge7 {[%clk 0:02:54.8]} 4.
O-O {[%clk 0:03:03.4]} 4... a6 {[%clk 0:02:55.3]} 5. Bc4 {[%clk 0:03:03.7]} 5...
Ng6 {[%clk 0:02:51.4]} 6. c3 {[%clk 0:03:02.6]} 6... b5 {[%clk 0:02:48.9]} 7.
Bb3 {[%clk 0:03:03.2]} 7... Be7 {[%clk 0:02:49.8]} 8. d4 {[%clk 0:03:03.6]} 8...
d6 {[%clk 0:02:50]} 9. a4 {[%clk 0:03:02.3]} 9... Bb7 {[%clk 0:02:45.4]} 10. d5
{[%clk 0:03:02.8]} 10... Nb8 {[%clk 0:02:43.1]} 11. axb5 {[%clk 0:03:02.3]}
11... axb5 {[%clk 0:02:44]} 12. Rxa8 {[%clk 0:03:03.9]} 12... Bxa8 {[%clk
0:02:45.2]} 13. Na3 {[%clk 0:03:05.6]} 13... c6 {[%clk 0:02:44.2]} 14. dxc6
{[%clk 0:03:06]} 14... Bxc6 {[%clk 0:02:44.8]} 15. Bd5 {[%clk 0:03:07.7]} 15...
Bd7 {[%clk 0:02:45.3]} 16. Qb3 {[%clk 0:03:04.1]} 16... O-O {[%clk 0:02:36.5]}
17. Nxb5 {[%clk 0:03:04.5]} 17... Na6 {[%clk 0:02:36.4]} 18. Be3 {[%clk
0:03:04.4]} 18... Bg4 {[%clk 0:02:31]} 19. Nd2 {[%clk 0:03:03.7]} 19... Bg5
{[%clk 0:02:20.9]} 20. Nc4 {[%clk 0:02:26.1]} 20... Be2 {[%clk 0:02:07.9]} 21.
Re1 {[%clk 0:02:26.3]} 21... Bxe3 {[%clk 0:02:04.8]} 22. Nxe3 {[%clk 0:02:25.7]}
22... Nc5 {[%clk 0:02:05.2]} 23. Qb4 {[%clk 0:02:16.2]} 23... Nd3 {[%clk
0:02:05.1]} 24. Qc4 {[%clk 0:02:14.7]} 24... Ngf4 {[%clk 0:01:37.2]} 25. Ra1
{[%clk 0:02:05.3]} 25... Nxf2 {[%clk 0:01:22.4]} 26. Qc6 {[%clk 0:01:59]} 26...
Qg5 {[%clk 0:01:12.4]} 27. Kxf2 {[%clk 0:01:57]} 27... Qh4+ {[%clk 0:01:11.5]}
28. Kg1 {[%clk 0:01:55.2]} 28... Nd3 {[%clk 0:01:06.5]} 29. Kh1 {[%clk
0:01:18.5]} 29... Qf2 {[%clk 0:00:59.2]} 30. Qb6 {[%clk 0:01:07.6]} 30... Nc5
{[%clk 0:00:38.4]} 31. Nxd6 {[%clk 0:00:54.6]} 31... Qf3 {[%clk 0:00:35.7]} 1-0

[Event "*** MasterClass Titled Tuesday Blitz"]
[Site "Chess.com"]
[Date "2017.10.03"]
[Round "1"]
[White "SerGo055"]
[Black "rickkrewson"]
[Result "1-0"]
[WhiteElo "2417"]
[BlackElo "1772"]
[TimeControl "180+2"]
[EndTime "13:07:10 PDT"]
[Termination "SerGo055 won by resignation"]

1. d4 {[%clk 0:02:41.4]} 1... Nc6 {[%clk 0:02:58.9]} 2. Nf3 {[%clk 0:02:40.4]}
2... d6 {[%clk 0:02:51.2]} 3. c4 {[%clk 0:02:40.5]} 3... g6 {[%clk 0:02:51.8]}
4. Nc3 {[%clk 0:02:40.4]} 4... Bg7 {[%clk 0:02:52.6]} 5. d5 {[%clk 0:02:40.6]}
5... Ne5 {[%clk 0:02:52.5]} 6. Nxe5 {[%clk 0:02:39.8]} 6... Bxe5 {[%clk
0:02:52.6]} 7. e4 {[%clk 0:02:41.4]} 7... f5 {[%clk 0:02:49.3]} 8. Bd3 {[%clk
0:02:41.2]} 8... fxe4 {[%clk 0:02:39.7]} 9. Nxe4 {[%clk 0:02:41.4]} 9... Bf5
{[%clk 0:02:29.9]} 10. Ng5 {[%clk 0:02:39.4]} 10... Bd7 {[%clk 0:02:19.6]} 11.
Nxh7 {[%clk 0:02:21.7]} 11... Kf7 {[%clk 0:02:04.7]} 12. Ng5+ {[%clk 0:02:19.6]}
12... Kg7 {[%clk 0:02:04.3]} 13. f4 {[%clk 0:02:12.9]} 13... Bf6 {[%clk
0:02:04]} 14. O-O {[%clk 0:02:12.9]} 14... Nh6 {[%clk 0:02:02.7]} 15. Qc2 {[%clk
0:02:06.2]} 15... Bd4+ {[%clk 0:01:45.5]} 16. Kh1 {[%clk 0:02:00]} 16... Nf5
{[%clk 0:01:46.5]} 17. Bxf5 {[%clk 0:01:39.6]} 17... Bxf5 {[%clk 0:01:46]} 18.
Ne6+ {[%clk 0:01:35.6]} 18... Bxe6 {[%clk 0:01:45.9]} 19. dxe6 {[%clk
0:01:36.3]} 19... Rh5 {[%clk 0:00:55.1]} 20. Qe4 {[%clk 0:01:23.3]} 20... Bf6
{[%clk 0:00:51.6]} 21. Be3 {[%clk 0:01:16.8]} 21... Qh8 {[%clk 0:00:51.9]} 22.
Bg1 {[%clk 0:01:12.6]} 22... c6 {[%clk 0:00:50.4]} 23. Rad1 {[%clk 0:00:56.8]}
23... Qh6 {[%clk 0:00:51]} 24. g4 {[%clk 0:00:52.6]} 24... Rh4 {[%clk
0:00:30.8]} 25. g5 {[%clk 0:00:52.3]} 25... Bxg5 {[%clk 0:00:18.3]} 26. fxg5
{[%clk 0:00:53.6]} 26... Rxe4 {[%clk 0:00:19.1]} 27. gxh6+ {[%clk 0:00:53.3]}
27... Kxh6 {[%clk 0:00:20]} 28. Rde1 {[%clk 0:00:54]} 28... Rxc4 {[%clk
0:00:18.7]} 29. Rf7 {[%clk 0:00:53.4]} 29... Re8 {[%clk 0:00:19.5]} 30. Be3+
{[%clk 0:00:53.3]} 30... g5 {[%clk 0:00:20.5]} 31. Rg1 {[%clk 0:00:52.3]} 1-0